[Event "92nd St. Petersburg-ch Men 2019"]
[Site "Sankt Petersburg"]
[Date "2019.04.07"]
[Round "7.3"]
[White "Vlasenko, Miroslav"]
[Black "Usmanov, Vasily"]
[Result "1/2-1/2"]
[ECO "D37"]
[WhiteElo "2410"]
[BlackElo "2450"]
[Annotator "ChessBase"]
[PlyCount "86"]
[EventDate "2019.04.01"]
[EventType "tourn"]
[EventCountry "RUS"]
[SourceTitle "playchess.com"]
[Source "ChessBase"]
[SourceQuality "1"]
[TimeControl "40/5400+30:1800+30"]

1. d4 {[%emt 0:00:00]} d5 {[%emt 0:00:00]} 2. c4 {[%emt 0:00:00]} e6 {[%emt 0:00:00]} 3. Nc3 {[%emt 0:00:00]} a6 {[%emt 0:00:00]} 4. cxd5 {[%emt 0:00:57]} exd5 {[%emt 0:00:00]} 5. Nf3 {[%emt 0:00:34]} Nf6 {[%emt 0:00:00]} 6. Bf4 {[%emt 0:00:50]} Bd6 {[%emt 0:00:31]} 7. g3 {[%emt 0:05:02]} O-O {[%emt 0:04:11]} 8. Bg2 {[%emt 0:00:26]} c6 {[%emt 0:02:34]} 9. O-O {[%emt 0:01:42]} Bxf4 {[%emt 0:08:46]} 10. gxf4 {[%emt 0:00:08]} Ne8 {[%emt 0:02:18]} 11. e3 {[%emt 0:02:43]} Nd6 {[%emt 0:02:08]} 12. b4 {[%emt 0:02:28]} Bg4 {[%emt 0:02:05]} 13. a4 {[%emt 0:03:28]} Nd7 {[%emt 0:00:12]} 14. b5 {[%emt 0:00:53]} axb5 {[%emt 0:01:42]} 15. axb5 {[%emt 0:00:15]} Nb6 {[%emt 0:00:54]} 16. bxc6 {[%emt 0:09:12]} bxc6 {[%emt 0:00:12]} 17. Qc2 {[%emt 0:06:36]} Bxf3 {[%emt 0:03:09]} 18. Bxf3 {[%emt 0:00:02]} Qd7 {[%emt 0:00:20]} 19. Na4 {[%emt 0:16:05]} Nxa4 {[%emt 0:02:38]} 20. Rxa4 {[%emt 0:01:02]} Nf5 {[%emt 0:06:01]} 21. Rxa8 {[%emt 0:11:54]} Rxa8 {[%emt 0:00:10]} 22. h3 {[%emt 0:08:15]} Ne7 {[%emt 0:00:24]} 23. Bg4 {[%emt 0:01:37]} f5 {[%emt 0:01:18]} 24. Be2 {[%emt 0:01:08]} Qa7 {[%emt 0:00:14]} 25. Bd3 {[%emt 0:01:45]} g6 {[%emt 0:00:16]} 26. Rb1 {[%emt 0:02:19]} Rb8 {[%emt 0:00:44]} 27. Kg2 {[%emt 0:01:54]} Rxb1 {[%emt 0:00:08]} 28. Qxb1 {[%emt 0:00:01]} Kf7 {[%emt 0:00:16]} 29. Kf3 {[%emt 0:01:04]} Qa3 {[%emt 0:06:25]} 30. Bc2 {[%emt 0:01:10]} h6 {[%emt 0:02:24]} 31. Kg2 {[%emt 0:00:20]} Qa7 {[%emt 0:01:56]} 32. Qb4 {[%emt 0:01:49]} Qc7 {[%emt 0:00:43]} 33. h4 {[%emt 0:01:27]} h5 {[%emt 0:00:40]} 34. Bb3 {[%emt 0:01:15]} Ke6 {[%emt 0:00:16]} 35. Kg3 {[%emt 0:00:51]} Qa7 {[%emt 0:00:48]} 36. Kg2 {[%emt 0:01:34]} Qa6 {[%emt 0:01:18]} 37. Bd1 {[%emt 0:00:48]} Qb5 {[%emt 0:03:56]} 38. Qa3 {[%emt 0:00:27]} Qb1 {[%emt 0:00:30]} 39. Bf3 {[%emt 0:00:04]} Qb7 {[%emt 0:00:28]} 40. Qa5 {[%emt 0:00:00]} Kd7 {[%emt 0:00:00]} 41. Qc5 {[%emt 0:00:51]} Ke6 {[%emt 0:01:12]} 42. Qa5 {[%emt 0:00:05]} Kd7 {[%emt 0:00:28]} 43. Qc5 {[%emt 0:00:09]} Ke6 {[%emt 0:00:05]} 1/2-1/2

[Event "92nd St. Petersburg-ch Men 2019"]
[Site "Sankt Petersburg"]
[Date "2019.04.07"]
[Round "7.4"]
[White "Duzhakov, Ilya"]
[Black "Saveliev, Alexei"]
[Result "1/2-1/2"]
[ECO "E11"]
[WhiteElo "2397"]
[BlackElo "2372"]
[Annotator "NA"]
[PlyCount "121"]
[EventDate "2019.04.01"]
[EventType "tourn"]
[EventCountry "RUS"]
[SourceTitle "playchess.com"]
[Source "ChessBase"]
[SourceQuality "1"]
[TimeControl "40/5400+30:1800+30"]

1. d4 {[%emt 0:03:42]} Nf6 {[%emt 0:03:27]} 2. c4 {[%emt 0:00:18]} e6 {[%emt 0:00:04]} 3. Nf3 {[%emt 0:00:11]} Bb4+ {[%emt 0:00:08]} 4. Nbd2 {[%emt 0:00:09]} O-O {[%emt 0:00:06]} 5. a3 {[%emt 0:00:06]} Be7 {[%emt 0:00:05]} 6. e4 {[%emt 0:01:24]} d6 {[%emt 0:00:05] E11: Bogo-Indian} 7. Be2 {[%emt 0:00:09]} Nbd7 {[%emt 0:00:10]} 8. O-O {[%emt 0:00:17]} c5 {[%emt 0:00:04]} 9. d5 {[%emt 0:00:31]} e5 {[%emt 0:00:55]} 10. Ne1 {[%emt 0:01:45]} Ne8 {[%emt 0:00:44]} 11. Nd3 {[%emt 0:01:24]} g6 {[%emt 0:00:05]} 12. b4 {[%emt 0:05:40]} b6 {[%emt 0:00:26]} 13. Bb2 {[%emt 0:03:22]} Ng7 {[%emt 0:00:20] [#]} 14. Qb3 $146 {[%emt 0:07:18]} ({Predecessor:} 14. Kh1) 14... Bg5 {[%emt 0:02:41]} 15. f4 {[%emt 0:12:14]} exf4 {[%emt 0:00:13]} 16. Nxf4 {[%emt 0:00:39]} Qe7 {[%emt 0:00:35]} 17. Rae1 {[%emt 0:03:51]} Ne5 {[%emt 0:01:10]} 18. Bd1 {[%emt 0:05:50]} Bd7 {[%emt 0:00:33]} 19. g3 {[%emt 0:04:20]} Rae8 {[%emt 0:03:51]} 20. Nf3 {[%emt 0:01:14]} Bf6 {[%emt 0:01:32]} 21. Nxe5 {[%emt 0:08:55]} Bxe5 {[%emt 0:00:15]} 22. Nd3 $1 {[%emt 0:01:32]} Bxb2 {[%emt 0:04:06]} 23. Qxb2 {[%emt 0:00:34]} f6 {[%emt 0:00:04]} 24. Bf3 {[%emt 0:02:36]} Bh3 {[%emt 0:04:11]} 25. Rf2 {[%emt 0:02:34]} Qd7 {[%emt 0:00:57]} 26. Nf4 {[%emt 0:04:05]} Bg4 {[%emt 0:00:24]} 27. Bg2 {[%emt 0:01:48]} Qd8 {[%emt 0:03:39]} 28. Qc3 {[%emt 0:06:21]} Bd7 {[%emt 0:01:00]} 29. b5 {[%emt 0:02:22]} Rf7 $14 {[%emt 0:00:29]} 30. h3 {[%emt 0:03:20]} Qc8 {[%emt 0:05:19]} 31. Kh2 {[%emt 0:00:44]} a6 {[%emt 0:03:17]} 32. a4 {[%emt 0:04:33]} a5 {[%emt 0:00:11]} 33. Nd3 {[%emt 0:01:13]} Qd8 {[%emt 0:00:07]} 34. Qd2 {[%emt 0:00:56]} Qe7 {[%emt 0:00:42]} 35. Qh6 {[%emt 0:03:37]} Qf8 {[%emt 0:00:08]} 36. Qc1 {[%emt 0:02:25]} Qe7 {[%emt 0:00:34]} 37. Qb2 {[%emt 0:01:13]} Qd8 {[%emt 0:00:19]} 38. Ref1 {[%emt 0:00:33]} Ref8 {[%emt 0:00:04]} 39. Qd2 {[%emt 0:01:03]} Qe8 {[%emt 0:00:52]} 40. Re1 {[%emt 0:00:00]} Qe7 {[%emt 0:00:00]} 41. Ree2 {[%emt 0:05:43]} Re8 {[%emt 0:00:46]} 42. Kg1 {[%emt 0:00:29]} Qf8 {[%emt 0:01:29]} 43. Qc3 {[%emt 0:02:13]} Qe7 {[%emt 0:00:06]} 44. Kf1 {[%emt 0:01:05]} Nh5 {[%emt 0:01:11]} 45. Rf3 {[%emt 0:01:09]} Ng7 {[%emt 0:00:47]} 46. Qb2 {[%emt 0:01:26]} Qd8 {[%emt 0:01:03]} 47. g4 {[%emt 0:05:36]} Qe7 {[%emt 0:00:47]} 48. Ke1 {[%emt 0:08:24]} h5 {[%emt 0:02:54]} 49. gxh5 {[%emt 0:00:28]} Nxh5 {[%emt 0:00:09]} 50. Kd1 {[%emt 0:00:56]} Kg7 {[%emt 0:00:06]} 51. Kc2 {[%emt 0:01:51]} Kh7 {[%emt 0:00:39]} 52. Kb3 {[%emt 0:00:22]} Ng7 {[%emt 0:01:08]} 53. Re1 {[%emt 0:00:30]} Rh8 {[%emt 0:00:16]} 54. Qf2 {[%emt 0:00:28]} Kg8 {[%emt 0:01:11]} 55. Rg3 {[%emt 0:04:52]} g5 {[%emt 0:00:58]} 56. Rge3 {[%emt 0:02:37]} Rh4 {[%emt 0:00:27]} 57. Rf1 {[%emt 0:00:31]} Nh5 {[%emt 0:00:30]} 58. Qd2 {[%emt 0:02:30]} Ng7 {[%emt 0:01:42]} 59. Qf2 {[%emt 0:01:19]} Nh5 {[%emt 0:00:05]} 60. Qd2 {[%emt 0:00:18]} Ng7 {[%emt 0:00:04]} 61. Qf2 {[%emt 0:00:38]} 1/2-1/2

[Event "92nd St. Petersburg-ch Men 2019"]
[Site "Sankt Petersburg"]
[Date "2019.04.08"]
[Round "8.2"]
[White "Schekachikhin, Maksim"]
[Black "Smirnov, Artem"]
[Result "1/2-1/2"]
[ECO "E97"]
[WhiteElo "2428"]
[BlackElo "2413"]
[Annotator "NA"]
[PlyCount "222"]
[EventDate "2019.04.01"]
[EventType "tourn"]
[EventCountry "RUS"]
[SourceTitle "playchess.com"]
[Source "ChessBase"]
[SourceQuality "1"]
[TimeControl "40/5400+30:1800+30"]

1. d4 {[%emt 0:00:00]} Nf6 {[%emt 0:01:12]} 2. c4 {[%emt 0:00:17]} g6 {[%emt 0:00:13]} 3. Nc3 {[%emt 0:00:11]} Bg7 {[%emt 0:00:07]} 4. e4 {[%emt 0:00:06]} d6 {[%emt 0:00:02]} 5. Be2 {[%emt 0:00:07]} O-O {[%emt 0:00:17]} 6. Nf3 {[%emt 0:02:21]} e5 {[%emt 0:00:16]} 7. O-O {[%emt 0:00:07]} Nc6 {[%emt 0:00:08]} 8. d5 {[%emt 0:00:05]} Ne7 {[%emt 0:00:05]} 9. b4 {[%emt 0:00:06]} a5 {[%emt 0:00:16] LiveBook: 1261 Games} 10. Ba3 {[%emt 0:00:18]} Re8 {[%emt 0:02:10] E97: King's Indian: Classical Main Line (6...e5 7 0-0 Nc6): 8 Be3 and 8 d5 Ne7, not 9 Ne1} 11. c5 {[%emt 0:15:11]} ({Better is} 11. bxa5 $14 Rxa5 12. Bb4) 11... axb4 $1 {[%emt 0:11:19]} 12. Bxb4 {[%emt 0:00:42]} dxc5 $1 {[%emt 0:03:02]} 13. Bxc5 {[%emt 0:02:02]} c6 {[%emt 0:00:24]} 14. Qb3 {[%emt 0:16:57]} (14. dxc6 Nxc6 15. Qxd8 Rxd8 16. Bb6 Rf8 17. Bc5 Rd8 18. Bb6 {0-1 (48) Nihal,S (2556)-Amin,B (2684) Abu Dhabi 2018}) 14... cxd5 {[%emt 0:10:27]} 15. Rfd1 {[%emt 0:03:48]} (15. Rad1 $11) 15... Bg4 $146 {[%emt 0:16:50]} ({Predecessor:} 15... Qc7 16. Bb6 Qd6 17. a4 Nd7 18. Be3 d4 19. Nb5 {0-1 (47) Vidal Melendez,I (2248)-Gascon del Nogal,J (2457) Merida 2016}) 16. exd5 {[%emt 0:08:51]} Nf5 {[%emt 0:04:57]} 17. d6 {[%emt 0:13:24]} Nd7 {[%emt 0:21:25]} 18. Be3 {[%emt 0:04:12]} Bxf3 {[%emt 0:07:09]} 19. Bxf3 {[%emt 0:01:13]} Nxe3 {[%emt 0:00:43]} 20. fxe3 {[%emt 0:00:06]} e4 {[%emt 0:00:08]} 21. Nxe4 {[%emt 0:07:40]} Bxa1 {[%emt 0:04:28]} 22. Rxa1 {[%emt 0:01:23]} Qa5 {[%emt 0:06:29]} 23. Qxb7 {[%emt 0:03:47]} Qe5 {[%emt 0:03:02]} 24. Rf1 {[%emt 0:04:59]} Rad8 {[%emt 0:00:48]} 25. Qb3 {[%emt 0:03:35]} Rf8 {[%emt 0:00:14]} (25... Kg7 $17 26. Rd1 f5) 26. Rd1 {[%emt 0:00:37]} Rb8 {[%emt 0:02:51]} 27. Qc3 {[%emt 0:02:16]} Qxc3 {[%emt 0:01:20]} 28. Nxc3 {[%emt 0:00:04]} Rfd8 {[%emt 0:00:58]} 29. a4 {[%emt 0:04:10]} Ne5 {[%emt 0:00:11]} 30. a5 {[%emt 0:02:09]} Rb3 {[%emt 0:01:34]} 31. Na4 {[%emt 0:02:22]} Rb5 {[%emt 0:01:43]} 32. Be2 {[%emt 0:01:43]} Rxa5 {[%emt 0:00:13]} 33. Nb6 {[%emt 0:00:04]} Kg7 {[%emt 0:00:51]} 34. e4 {[%emt 0:00:48]} Ra2 {[%emt 0:00:19]} 35. Kf1 {[%emt 0:00:35]} Rb2 {[%emt 0:00:29]} 36. Na4 {[%emt 0:00:31]} Rc2 {[%emt 0:00:17]} 37. Rd5 {[%emt 0:00:20] [#]} f6 {[%emt 0:00:52]} (37... Nd7 $1 $19 {is more deadly.} 38. Bd3 Rd2) 38. Nc5 {[%emt 0:00:40]} Rxd6 {[%emt 0:00:37]} 39. Rxd6 {[%emt 0:00:19]} Rxc5 {[%emt 0:00:03]} 40. Kf2 {[%emt 0:00:00]} g5 {[%emt 0:00:00]} 41. Rd2 {[%emt 0:07:55]} Kg6 {[%emt 0:01:10]} 42. Rd8 {[%emt 0:02:23]} Rc2 {[%emt 0:00:58]} 43. Ke3 {[%emt 0:00:38]} Rc3+ {[%emt 0:00:57]} 44. Kd2 {[%emt 0:01:49]} Ra3 {[%emt 0:00:37]} 45. Rg8+ {[%emt 0:00:05]} Kf7 {[%emt 0:00:18]} 46. Rc8 {[%emt 0:00:54]} Kg7 {[%emt 0:04:24]} 47. Rc3 {[%emt 0:02:03]} Ra4 {[%emt 0:00:17]} 48. Ke3 {[%emt 0:01:03]} Kg6 {[%emt 0:00:26]} 49. Rc8 {[%emt 0:00:41]} Ra3+ {[%emt 0:00:28]} 50. Kf2 {[%emt 0:00:56]} h5 $11 {[%emt 0:02:13]} 51. Rg8+ {[%emt 0:00:24]} Kh7 {[%emt 0:00:56]} 52. Rf8 {[%emt 0:01:06]} Ra2 {[%emt 0:02:37]} 53. Ke3 {[%emt 0:00:58]} Kg7 {[%emt 0:00:38]} 54. Rd8 {[%emt 0:00:56]} h4 {[%emt 0:02:36]} 55. Rd2 {[%emt 0:01:30]} Ra1 {[%emt 0:02:11]} 56. Rd1 {[%emt 0:01:41]} Ra3+ {[%emt 0:00:16]} 57. Kf2 {[%emt 0:01:05]} h3 {[%emt 0:06:39]} 58. g3 {[%emt 0:06:04]} Kf7 {[%emt 0:05:26]} 59. Rd2 {[%emt 0:01:12]} Ke6 {[%emt 0:01:47]} 60. Rd1 {[%emt 0:01:08]} g4 {[%emt 0:01:28]} 61. Rd8 {[%emt 0:02:18]} Kf7 {[%emt 0:04:11]} 62. Rd5 {[%emt 0:01:39]} Ke7 {[%emt 0:00:35]} 63. Rd1 {[%emt 0:00:40]} Nf3 {[%emt 0:00:25]} 64. Bxf3 {[%emt 0:00:45]} Rxf3+ {[%emt 0:00:06]} 65. Ke2 {[%emt 0:00:04]} Ra3 {[%emt 0:00:56]} 66. Rd3 {[%emt 0:01:55]} Ra4 {[%emt 0:00:40]} 67. Ke3 {[%emt 0:00:09]} Ke6 {[%emt 0:00:16]} 68. Rd5 {[%emt 0:01:40]} Ra2 {[%emt 0:00:42]} 69. Rd2 {[%emt 0:00:30]} Ra4 {[%emt 0:01:02]} 70. Rb2 {[%emt 0:01:39]} Rc4 {[%emt 0:00:35]} 71. Kf4 {[%emt 0:00:45]} Ra4 {[%emt 0:00:37]} 72. Rb6+ {[%emt 0:00:19]} Ke7 {[%emt 0:00:28]} 73. Rb7+ {[%emt 0:00:21]} Ke6 {[%emt 0:00:17]} 74. Rb6+ {[%emt 0:00:13]} Ke7 {[%emt 0:00:02]} 75. Kxg4 {[%emt 0:01:18]} Rxe4+ {[%emt 0:00:06]} 76. Kxh3 {[%emt 0:00:07]} f5 {[%emt 0:00:25]} 77. Rb2 {[%emt 0:00:13]} Kf6 {[%emt 0:00:18]} 78. Kg2 {[%emt 0:00:10]} Re3 {[%emt 0:00:30]} 79. Kf2 {[%emt 0:00:09]} Ra3 {[%emt 0:00:05]} 80. Rb6+ {[%emt 0:01:11]} Kg7 {[%emt 0:01:03]} 81. h4 {[%emt 0:01:02]} Kf7 {[%emt 0:00:29]} 82. Kg2 {[%emt 0:00:13]} Kg7 {[%emt 0:00:29]} 83. Rb4 {[%emt 0:00:43]} Kg6 {[%emt 0:00:52]} 84. Rb6+ {[%emt 0:00:30]} Kg7 {[%emt 0:00:33]} 85. Rc6 {[%emt 0:00:13]} Kf7 {[%emt 0:00:12]} 86. Kf2 {[%emt 0:00:33]} Rb3 {[%emt 0:00:09]} 87. Ra6 {[%emt 0:00:14]} Rc3 {[%emt 0:00:11]} 88. h5 {[%emt 0:00:34]} Kg7 {[%emt 0:02:04]} 89. Kg2 {[%emt 0:00:08]} Rb3 {[%emt 0:00:18]} 90. Rg6+ {[%emt 0:00:25]} Kf7 {[%emt 0:00:40]} 91. Kh2 {[%emt 0:01:19]} Ra3 {[%emt 0:00:08]} 92. Rg5 {[%emt 0:00:45]} Kf6 {[%emt 0:00:09]} 93. Rg8 {[%emt 0:00:06]} Kf7 {[%emt 0:00:08]} 94. Rg6 {[%emt 0:00:23]} Rb3 {[%emt 0:00:16]} 95. Ra6 {[%emt 0:00:05]} Kg7 {[%emt 0:00:09]} 96. Kg2 {[%emt 0:00:49]} Rc3 {[%emt 0:00:20]} 97. h6+ {[%emt 0:00:22]} Kh7 {[%emt 0:00:43]} 98. Rf6 {[%emt 0:00:06]} Ra3 {[%emt 0:00:39]} 99. Kh3 {[%emt 0:00:06]} f4 {[%emt 0:00:12]} 100. Rxf4 {[%emt 0:00:04]} Kxh6 {[%emt 0:00:04]} 101. Kh4 {[%emt 0:00:08]} Kg6 {[%emt 0:00:17]} 102. Rb4 {[%emt 0:00:02]} Ra6 {[%emt 0:00:20]} 103. g4 {[%emt 0:00:04]} Rc6 {[%emt 0:00:18]} 104. Rb8 {[%emt 0:00:29]} Ra6 {[%emt 0:00:12]} 105. Rg8+ {[%emt 0:00:08]} Kh7 {[%emt 0:00:29]} 106. Rg5 {[%emt 0:00:07]} Kh6 {[%emt 0:00:15]} 107. Rf5 {[%emt 0:00:18]} Kg6 {[%emt 0:00:09]} 108. Rf4 {[%emt 0:00:03]} Rb6 {[%emt 0:00:20]} 109. g5 {[%emt 0:00:03]} Ra6 {[%emt 0:00:05]} 110. Rf6+ {[%emt 0:00:12]} Rxf6 {[%emt 0:00:06]} 111. gxf6 {[%emt 0:00:02]} Kxf6 {[%emt 0:00:06]} 1/2-1/2

[Event "92nd St. Petersburg-ch Men 2019"]
[Site "Sankt Petersburg"]
[Date "2019.04.08"]
[Round "8.3"]
[White "Saveliev, Alexei"]
[Black "Golikov, Daniil"]
[Result "1-0"]
[ECO "C11"]
[WhiteElo "2372"]
[BlackElo "2298"]
[Annotator "NA"]
[PlyCount "287"]
[EventDate "2019.04.01"]
[EventType "tourn"]
[EventCountry "RUS"]
[SourceTitle "playchess.com"]
[Source "ChessBase"]
[SourceQuality "1"]
[TimeControl "40/5400+30:1800+30"]

1. e4 {[%emt 0:00:00]} e6 {[%emt 0:00:00]} 2. d4 {[%emt 0:00:00]} d5 {[%emt 0:00:00]} 3. Nc3 {[%emt 0:00:00]} Nf6 {[%emt 0:00:00]} 4. e5 {[%emt 0:00:04]} Nfd7 {[%emt 0:00:00]} 5. Nce2 {[%emt 0:00:03]} c5 {[%emt 0:00:25]} 6. c3 {[%emt 0:00:18]} Nc6 {[%emt 0:00:04]} 7. a3 {[%emt 0:00:03]} c4 {[%emt 0:03:08] C11: French: Classical System: 4 e5 and 4 Bg5 dxe4} 8. Nf3 {[%emt 0:00:16]} Be7 {[%emt 0:00:09]} 9. g3 {[%emt 0:00:05]} (9. Nf4 Na5 10. Be3 Nb6 11. h4 Bd7 12. Nh5 Ba4 13. Qe2 Rg8 14. Bg5 h6 15. Bxe7 Qxe7 {0-1 (48) Svetushkin,D (2544)-Salgado Lopez,I (2627) Saint-Quentin 2014}) 9... b5 {[%emt 0:00:23]} 10. Nf4 $146 {[%emt 0:00:25]} ({Predecessor:} 10. h4 h6 11. Nf4 Nb6 12. h5 Kd7 13. Bh3 Kc7 14. Be3 Qg8 15. Qc2 Na5 {1-0 (69) Pang,K (1367)-Looi,K (1640) Penang 2017}) 10... Bb7 {[%emt 0:03:01]} 11. h4 {[%emt 0:02:21]} Na5 {[%emt 0:02:10]} 12. Be3 {[%emt 0:00:06]} Nb3 {[%emt 0:00:05]} 13. Rb1 {[%emt 0:00:02]} h6 {[%emt 0:00:16]} 14. Bh3 {[%emt 0:06:19]} Qb6 {[%emt 0:01:35]} 15. O-O {[%emt 0:07:11]} a5 {[%emt 0:00:33]} 16. Nd2 {[%emt 0:00:26]} Nxd2 {[%emt 0:00:05]} 17. Qxd2 {[%emt 0:00:09]} O-O-O {[%emt 0:02:43]} 18. Kh2 {[%emt 0:02:20]} h5 {[%emt 0:18:58]} 19. Qe2 {[%emt 0:02:17]} g6 {[%emt 0:00:21]} 20. Bg2 {[%emt 0:01:03]} a4 {[%emt 0:02:28]} 21. Nh3 {[%emt 0:00:13]} Rdg8 {[%emt 0:00:30]} 22. Bg5 {[%emt 0:01:14]} Qd8 {[%emt 0:02:07]} 23. Qd2 {[%emt 0:01:18]} Rg7 {[%emt 0:02:35]} 24. Rbe1 {[%emt 0:00:13]} Nf8 {[%emt 0:06:15]} 25. Bxe7 {[%emt 0:01:22]} Qxe7 {[%emt 0:00:23]} 26. Qg5 {[%emt 0:00:01]} Qxg5 {[%emt 0:00:20]} 27. Nxg5 {[%emt 0:00:23]} Nh7 {[%emt 0:03:17]} 28. Nh3 {[%emt 0:00:06]} Nf8 {[%emt 0:00:30]} 29. Bf3 {[%emt 0:00:08]} Kd8 {[%emt 0:00:22]} 30. Kg2 {[%emt 0:00:09]} Ke7 {[%emt 0:00:10]} 31. Rh1 {[%emt 0:00:03]} Rgh7 {[%emt 0:00:35]} 32. Bd1 {[%emt 0:00:33]} Rh6 {[%emt 0:01:33]} 33. Rh2 {[%emt 0:00:06]} Nd7 {[%emt 0:00:47]} 34. Reh1 {[%emt 0:00:19]} Kf8 {[%emt 0:03:55]} 35. Nf4 {[%emt 0:00:07]} Kg7 {[%emt 0:09:28]} 36. f3 {[%emt 0:00:37]} Kf8 {[%emt 0:05:34]} 37. Bc2 {[%emt 0:00:32]} Ke7 {[%emt 0:00:23]} 38. Rh3 {[%emt 0:00:31]} Nf8 {[%emt 0:00:54]} 39. g4 {[%emt 0:00:58]} hxg4 {[%emt 0:00:21]} 40. fxg4 {[%emt 0:00:00]} Bc6 {[%emt 0:00:00]} 41. g5 {[%emt 0:09:21]} R6h7 {[%emt 0:02:24]} 42. Kg3 {[%emt 0:02:20]} Be8 {[%emt 0:01:57]} 43. h5 {[%emt 0:00:28]} Rg7 {[%emt 0:03:16]} 44. Kg4 {[%emt 0:05:05]} Bd7 {[%emt 0:01:49]} 45. Ng2 {[%emt 0:03:21]} Be8 {[%emt 0:02:14]} 46. Ne3 {[%emt 0:00:31]} Rgh7 {[%emt 0:08:37]} 47. Ng2 {[%emt 0:03:26]} Rg7 {[%emt 0:01:09]} 48. R1h2 {[%emt 0:01:04]} Bd7 {[%emt 0:05:36]} 49. Rh4 {[%emt 0:09:23]} Be8 {[%emt 0:01:37]} 50. Nf4 {[%emt 0:02:34]} Rgh7 {[%emt 0:00:32]} 51. R2h3 {[%emt 0:00:32]} Rg7 {[%emt 0:01:38]} 52. Rh1 {[%emt 0:00:06]} Rgh7 {[%emt 0:00:23]} 53. R1h2 $18 {[%emt 0:00:03]} Rg7 {[%emt 0:00:24]} 54. Ng2 {[%emt 0:00:34]} Rgh7 {[%emt 0:00:15]} 55. R4h3 {[%emt 0:00:47]} Rg7 {[%emt 0:01:31]} 56. Bb1 {[%emt 0:03:40]} Bd7 {[%emt 0:09:13]} 57. Rh4 {[%emt 0:12:02]} Be8 {[%emt 0:00:12]} 58. Kf3 {[%emt 0:00:54]} Rgh7 {[%emt 0:16:46]} 59. Nf4 {[%emt 0:00:03]} Rg7 {[%emt 0:00:24]} 60. Kg3 {[%emt 0:00:45]} Bd7 {[%emt 0:00:56]} 61. Ng2 {[%emt 0:00:09]} Be8 {[%emt 0:02:27]} 62. Ne3 {[%emt 0:09:19]} Rgh7 {[%emt 0:01:03]} 63. Kg4 {[%emt 0:00:05]} Bd7 {[%emt 0:00:20]} 64. Bc2 {[%emt 0:00:51]} Be8 {[%emt 0:00:12]} 65. Bd1 {[%emt 0:00:10]} Bd7 {[%emt 0:03:01]} 66. Bf3 {[%emt 0:03:12]} Bc6 {[%emt 0:02:12]} 67. Ng2 {[%emt 0:00:15]} Rg7 {[%emt 0:00:35]} 68. Nf4 {[%emt 0:01:01]} Rhg8 {[%emt 0:01:16]} 69. R4h3 {[%emt 0:01:40]} Rh8 {[%emt 0:00:14]} 70. Rh1 {[%emt 0:00:06]} Bd7 {[%emt 0:00:26]} 71. Be2 {[%emt 0:00:51]} Be8 {[%emt 0:00:10]} 72. Bd1 {[%emt 0:00:43]} Bd7 {[%emt 0:00:21]} 73. Bc2 {[%emt 0:00:23]} Be8 {[%emt 0:00:14]} 74. Bb1 {[%emt 0:00:14]} Bd7 {[%emt 0:00:19]} 75. Ba2 {[%emt 0:01:20]} Be8 {[%emt 0:00:12]} 76. R1h2 {[%emt 0:00:27]} Bd7 {[%emt 0:00:13]} 77. Bb1 {[%emt 0:00:04]} Be8 {[%emt 0:00:06]} 78. Ne2 {[%emt 0:00:07]} Bd7 {[%emt 0:00:47]} 79. Ng3 {[%emt 0:00:12]} Be8 {[%emt 0:00:24]} 80. Nh1 {[%emt 0:00:11]} Rgh7 {[%emt 0:01:15]} 81. Nf2 {[%emt 0:00:34]} Rg7 {[%emt 0:00:30]} 82. Rh4 {[%emt 0:01:13]} Rgh7 {[%emt 0:00:14]} 83. Bc2 {[%emt 0:00:30]} Bd7 {[%emt 0:01:26]} 84. R4h3 {[%emt 0:01:30]} Rg7 {[%emt 0:00:29]} 85. Rh1 {[%emt 0:00:14]} Be8 {[%emt 0:00:20]} 86. Bd1 {[%emt 0:00:31]} Rgh7 {[%emt 0:01:52]} 87. Bf3 {[%emt 0:01:27]} Bc6 {[%emt 0:00:54]} 88. R3h2 {[%emt 0:00:31]} Be8 {[%emt 0:00:23]} 89. Be2 {[%emt 0:00:05]} Bc6 {[%emt 0:00:09]} 90. Bd1 {[%emt 0:00:03]} Be8 {[%emt 0:00:09]} 91. Bc2 {[%emt 0:00:01]} Bd7 {[%emt 0:00:28]} 92. Rh3 {[%emt 0:00:16]} Rg7 {[%emt 0:00:47]} 93. Kf4 {[%emt 0:04:34]} Rgh7 {[%emt 0:02:30]} 94. hxg6 {[%emt 0:00:07]} Rxh3 {[%emt 0:00:04]} 95. Nxh3 {[%emt 0:00:52]} fxg6 {[%emt 0:00:09]} 96. Kg4 {[%emt 0:00:08]} Be8 {[%emt 0:00:38]} 97. Rf1 {[%emt 0:01:43]} Bf7 {[%emt 0:00:28]} 98. Kg3 {[%emt 0:00:14]} Rh7 {[%emt 0:00:15]} 99. Bd1 {[%emt 0:00:07]} Nd7 {[%emt 0:01:08]} 100. Nf2 {[%emt 0:00:22]} Nf8 {[%emt 0:00:24]} 101. Ng4 {[%emt 0:00:15]} Rh8 {[%emt 0:00:53]} 102. Nh6 {[%emt 0:00:18]} Rh7 {[%emt 0:00:14]} 103. Bc2 {[%emt 0:02:05]} Rg7 {[%emt 0:00:22]} 104. Kg4 {[%emt 0:01:47]} Be8 {[%emt 0:00:11]} 105. Rf6 {[%emt 0:00:27]} Nh7 {[%emt 0:00:36]} 106. Rf2 {[%emt 0:01:17]} Nf8 {[%emt 0:00:04]} 107. Kh4 {[%emt 0:00:05]} Bf7 {[%emt 0:00:16]} 108. Rf6 {[%emt 0:00:21]} Be8 {[%emt 0:00:05]} 109. Kg4 {[%emt 0:01:14]} Nd7 {[%emt 0:00:20]} 110. Rf2 {[%emt 0:01:00]} Nf8 {[%emt 0:00:05]} 111. Rh2 {[%emt 0:00:05]} Bf7 {[%emt 0:00:13]} 112. Bd1 {[%emt 0:00:15]} Rh7 {[%emt 0:00:34]} 113. Kg3 {[%emt 0:00:09]} Rg7 {[%emt 0:00:29]} 114. Rh1 {[%emt 0:00:47]} Nh7 {[%emt 0:00:25]} 115. Kh4 {[%emt 0:00:07]} Nf8 {[%emt 0:00:05]} 116. Rf1 {[%emt 0:00:10]} Be8 {[%emt 0:00:47]} 117. Rf6 {[%emt 0:00:12]} Bd7 {[%emt 0:00:21]} 118. Bg4 {[%emt 0:01:03]} Rh7 {[%emt 0:00:47]} 119. Kg3 {[%emt 0:00:46]} Rg7 {[%emt 0:00:04]} 120. Bh3 {[%emt 0:00:08]} Nh7 {[%emt 0:00:19]} 121. Kh4 {[%emt 0:00:04]} Nf8 {[%emt 0:00:05]} 122. Rf2 {[%emt 0:01:04]} Rh7 {[%emt 0:00:47]} 123. Kg3 {[%emt 0:00:07]} Rg7 {[%emt 0:00:03]} 124. Ng4 {[%emt 0:00:16]} Bc6 {[%emt 0:01:08]} 125. Nf6 {[%emt 0:00:13]} Be8 {[%emt 0:00:34]} 126. Bg4 {[%emt 0:00:09]} Bc6 {[%emt 0:01:26]} 127. Rh2 {[%emt 0:00:05]} Kf7 {[%emt 0:02:54]} 128. Rh8 {[%emt 0:00:32]} Ke7 {[%emt 0:00:01]} 129. Kf4 {[%emt 0:02:13]} Kf7 {[%emt 0:02:12]} 130. Rxf8+ {[%emt 0:00:55]} Kxf8 {[%emt 0:00:01]} 131. Bxe6 {[%emt 0:00:01]} Re7 {[%emt 0:00:09]} 132. Bxd5 {[%emt 0:09:23]} Bxd5 {[%emt 0:00:02]} 133. Nxd5 {[%emt 0:00:01]} Rh7 {[%emt 0:00:07]} 134. e6 {[%emt 0:00:10]} Rh2 {[%emt 0:00:03]} 135. Ke5 {[%emt 0:00:02]} Rxb2 {[%emt 0:00:11]} 136. Kd6 {[%emt 0:00:03]} Re2 {[%emt 0:01:50]} 137. Kd7 {[%emt 0:00:53]} Re4 {[%emt 0:00:41]} 138. Nb4 {[%emt 0:00:25]} Kg7 {[%emt 0:00:10]} 139. d5 {[%emt 0:00:12]} Re3 {[%emt 0:00:07]} 140. d6 {[%emt 0:00:28]} Re5 {[%emt 0:01:09]} 141. Nc6 {[%emt 0:00:28]} Re3 {[%emt 0:00:24]} 142. e7 {[%emt 0:00:14]} Kf7 {[%emt 0:00:05]} 143. Nd8+ {[%emt 0:00:03]} Kg8 {[%emt 0:00:07]} 144. Ne6 {[%emt 0:00:03]} 1-0